fUSD/lending_fUSD_20250321
["ID","MTS","AMOUNT","RATE_DAILY","PERIOD"]
[356493458,1742537447993,-151.0,0.00031496,7]
[356493459,1742537448003,-207.382408,0.00031496,7]
[356493460,1742537448012,-207.382408,0.00031496,7]
[356493461,1742537448021,-151.0,0.00031496,7]
[356493462,1742537448030,-151.0,0.00031496,7]
[356493463,1742537448040,-151.0,0.00031496,7]
[356493464,1742537448049,-151.0,0.00031496,7]
[356493465,1742537448058,-151.0,0.00031496,7]
[356493466,1742537448067,-151.0,0.00031496,7]
[356493467,1742537448075,-3043.463947,0.00031496,7]
[356493468,1742537448085,-151.0,0.00031496,7]
[356493469,1742537448094,-151.0,0.00031496,7]
[356493470,1742537448103,-151.0,0.00031496,7]
[356493471,1742537448112,-151.0,0.00031496,7]
[356493472,1742537448122,-316.527324,0.00031496,7]
[356493473,1742537448131,-316.527324,0.00031496,7]
[356493474,1742537448140,-151.0,0.00031496,7]
[356493475,1742537448149,-6822.59930797,0.00031496,3]
[356493476,1742538335599,1161.34121138,8e-05,2]
[356493477,1742538353742,29292.38430884,6.94e-05,2]
[356493478,1742538360879,1054.64528336,8e-05,2]
[356493479,1742538382083,-1000.0,0.00011999,2]
[356493480,1742538382107,-300.0,0.00011999,2]
[356493481,1742538382131,-221258.82548562,0.00012,2]
[356493484,1742538511862,-4436.24910279,0.0001,2]
[356493485,1742538511893,-676.22394806,0.0001,2]
[356493486,1742538511933,-2805.23039944,0.0001,2]
[356493490,1742538537019,-162.58288683,9.999e-05,2]
[356493491,1742538537052,-5108.24423303,0.0001,2]
[356493492,1742538537095,-5065.89856287,0.0001,2]
[356493496,1742538561786,-4799.99173159,0.0001,2]
[356493511,1742538631499,-150.0,9.999e-05,2]
[356493513,1742538631509,-1451.46032278,0.0001,2]
[356493515,1742538631520,-7597.58456803,0.0001,2]
[356493518,1742538631572,-288.0,0.0001,2]
[356493519,1742538631583,-1075.43,0.0001,2]
[356493520,1742538631594,-6891.26719767,0.0001,2]
[356493521,1742538631605,-423.51186156,0.0001,2]
[356493522,1742538631617,-1573.27801156,0.0001,2]
[356493523,1742538631651,-3909.71870609,0.0001,2]
[356493524,1742538632099,-316.52362598,0.0001,2]
[356493525,1742538632112,-330.55581015,0.0001,2]
[356493526,1742538632124,-1129.79283877,0.0001,2]
[356493527,1742538632136,-14570.57001997,0.0001,2]
[356493528,1742538632147,-2016.81087589,0.0001,2]
[356493529,1742538632159,-3149.999975,0.0001,2]
[356493530,1742538632170,-973.725,0.0001,2]
[356493531,1742538632181,-10104.78256784,0.0001,2]
[356493532,1742538632192,-542.92,0.0001,2]
[356493533,1742538632204,-479.93,0.0001,2]
[356493534,1742538637525,-2779.25495687,0.0001,2]
[356493535,1742538637540,-6435.12836608,0.0001,2]
[356493536,1742538637554,-770931.66785386,0.0001,2]
[356493537,1742538637566,-168609.58732189,0.0001,2]
[356493538,1742538639689,-357.38789991,0.0001,2]
[356493539,1742538639701,-1260.3,0.0001,2]
[356493540,1742538639850,-4172.25,0.0001,2]
[356493541,1742538639870,-1032.75,0.0001,2]
[356493542,1742538639957,-2288.07790496,0.0001,2]
[356493543,1742538640044,-9526.47575124,0.0001,2]
[356493544,1742538640056,-721.336,0.0001,2]
[356493545,1742538640068,-1273.216,0.0001,2]
[356493640,1742538642663,-37442.30556469,0.0001,2]
[356493641,1742538642675,-619.70755525,0.0001,2]
[356493642,1742538642687,-2794.10004,0.0001,2]
[356493643,1742538642751,-7777.99999997,0.0001,2]
[356493647,1742538645573,-20360.39586186,0.0001,2]
[356493648,1742538645660,-329.49853817,0.0001,2]
[356493649,1742538645672,-842.92322446,0.0001,2]
[356493650,1742538752620,200.0,9.922e-05,2]
[356493651,1742538752641,200.0,9.922e-05,2]
[356493652,1742538895421,500.0,0.00023,90]
[356493653,1742538932466,528.94,0.00023,90]
[356493654,1742539028864,152.22564224,0.00011,3]
[356493655,1742539739529,-41.312374,9.922e-05,2]
[356493656,1742539739561,-500.0,9.973e-05,2]
[356493657,1742539739591,-501.46067663,9.973e-05,2]
[356493658,1742539739621,-340.46133964,9.973e-05,2]
[356493661,1742539831822,-3118.28733497,9.99e-05,2]
[356493662,1742539831833,-300.0,9.998e-05,2]
[356493663,1742539831844,-868.08361754,9.999e-05,2]
[356493664,1742539831853,-2654.28023316,9.999e-05,2]
[356493665,1742539831864,-1077.94,9.999e-05,2]
[356493666,1742539831883,-801.3615906,9.999e-05,2]
[356493667,1742539831893,-18.44452206,9.999e-05,2]
[356493668,1742539831906,-131.55547794,9.999e-05,2]
[356493669,1742539831915,-378.77439757,0.0001,2]
[356493670,1742539832025,-865.0,0.0001,2]
[356493671,1742539832036,-858.32580318,0.0001,2]
[356493699,1742539837672,-4595.3446658,0.0001,2]
[356493700,1742539837683,-338.45966908,0.0001,2]
[356493701,1742539837798,-1177.89409944,0.0001,2]
[356493706,1742539840009,-807.22,0.0001,2]
[356493707,1742539840030,-64144.30545508,0.0001,2]
[356493709,1742539840328,-883.51789075,0.0001,2]
[356493710,1742539840339,-891.72127326,0.0001,2]
[356493713,1742539842919,-673.82,0.0001,2]
[356493714,1742539843845,-8015.62254673,0.0001,2]
[356493715,1742539843857,-1787.65066826,0.0001,2]
[356493778,1742540014306,-3421.072945,9.948e-05,2]
[356493779,1742540014329,-150.0,9.999e-05,2]
[356493780,1742540014351,-150.0,9.999e-05,2]
[356493781,1742540014372,-350.0,9.999e-05,2]
[356493782,1742540014392,-500.0,9.999e-05,2]
[356493783,1742540014412,-413.38906643,9.999e-05,2]
[356493784,1742540014633,-571.72937744,9.999e-05,2]
[356493785,1742540014658,-102443.80861113,0.0001,2]
[356493786,1742540051035,-150.0,9.999e-05,2]
[356493787,1742540051062,-300.0,9.999e-05,2]
[356493788,1742540051091,-207550.0,0.0001,2]
[356493789,1742540102389,-678.74172896,9.99e-05,2]
[356493790,1742540102413,-71321.25827104,0.0001,2]
[356493796,1742540310768,1689.659,9.8e-05,2]
[356493797,1742540310822,183.392,9.8e-05,2]
[356493802,1742540464470,-479.14329499,9.999e-05,2]
[356493803,1742540464492,-1000.0,9.999e-05,2]
[356493804,1742540464514,-150.0,9.999e-05,2]
[356493805,1742540464542,-501421.54035469,0.0001,2]
[356493806,1742540464566,-316.21691154,0.0001,2]
[356493814,1742540908698,-165.02271721,0.0001,2]
[356493815,1742540908721,-200.16644563,0.0001,2]
[356493816,1742540908744,-350.0,0.00010158,2]
[356493817,1742540908767,-150.0,0.00010316,2]
[356493818,1742540908789,-150.0,0.00010999,2]
[356493819,1742540908812,-350.0,0.00010999,2]
[356493820,1742540908837,-150.0,0.00011,2]
[356493821,1742540908860,-350.0,0.00011,2]
[356493822,1742540908882,-2000.0,0.00011633,2]
[356493823,1742540908904,-134.81083716,0.000119,2]
[356493828,1742540943797,-1106.84626284,0.000119,2]
[356493829,1742540943823,-300.0,0.00011964,2]
[356493830,1742540943849,-93.15373716,0.00011965,2]
[356493842,1742541031860,-81.72443938,0.00011965,2]
[356493843,1742541031871,-165.74364484,0.00011973,2]
[356493844,1742541031880,-500.0,0.00011973,2]
[356493845,1742541031890,-160.54516102,0.00011973,2]
[356493846,1742541031900,-150.0,0.00011999,2]
[356493847,1742541031909,-94676.81516782,0.00012,2]
[356493848,1742541031921,-3002.04649014,0.00012,2]
[356493849,1742541032030,-1095.15854495,0.00012,2]
[356493850,1742541032043,-400.41195319,0.00012,2]
[356493851,1742541032055,-391.2107439,0.00012,2]
[356493852,1742541032066,-2737.33492461,0.00012,2]
[356493853,1742541032077,-1587.35583697,0.00012,2]
[356493854,1742541032088,-3479.96276234,0.00012,2]
[356493906,1742541038044,-9637.66478778,0.00012,2]
[356493907,1742541038056,-2545.50539138,0.00012,2]
[356493908,1742541038071,-3967.82184322,0.00012,2]
[356493936,1742541040104,-740.46223979,0.00012,2]
[356493937,1742541040132,-3868.2,0.00012,2]
[356493938,1742541040340,-807886.06268757,0.00012,2]
[356493939,1742541040351,-180.56,0.00012065,2]
[356493940,1742541040361,-1394.35,0.00012154,2]
[356493941,1742541040371,-500.0,0.00012287,2]
[356493942,1742541040380,-23900.0,0.00012325,2]
[356493943,1742541040390,-1000.0,0.00012328,2]
[356493944,1742541040400,-374.15,0.00012633,2]
[356493945,1742541040409,-374.15,0.00012659,2]
[356493946,1742541040419,-22942.21798667,0.00012663,2]
[356493947,1742541040430,-374.15,0.00012686,2]
[356493948,1742541040439,-374.15,0.00012712,2]
[356493949,1742541040449,-374.15,0.00012739,2]
[356493950,1742541040458,-374.15,0.00012766,2]
[356493951,1742541040468,-374.15,0.00012792,2]
[356493952,1742541040478,-374.15,0.00012819,2]
[356493953,1742541040491,-300.0,0.0001282,2]
[356493954,1742541040500,-374.15,0.00012845,2]
[356493955,1742541040509,-374.15,0.00012872,2]
[356493956,1742541040519,-374.15,0.00012899,2]
[356493957,1742541040529,-374.15,0.00012925,2]
[356493958,1742541040539,-374.15,0.00012952,2]
[356493959,1742541040548,-374.15,0.00012978,2]
[356493960,1742541040558,-374.15,0.00013005,2]
[356493961,1742541040567,-374.15,0.00013032,2]
[356493962,1742541040576,-374.15,0.00013058,2]
[356493963,1742541040585,-374.15,0.00013085,2]
[356493964,1742541040595,-166.66,0.000131,2]
[356493965,1742541040604,-374.15,0.00013111,2]
[356493966,1742541040613,-374.15,0.00013138,2]
[356493967,1742541040623,-166.66,0.00013532,2]
[356493968,1742541040632,-200.0,0.00013699,2]
[356493969,1742541040642,-500.0,0.00013699,2]
[356493970,1742541040651,-500.0,0.00013699,2]
[356493971,1742541040660,-500.0,0.00013699,2]
[356493972,1742541040669,-500.0,0.00013699,2]
[356493973,1742541040679,-313.70304494,0.00013699,2]
[356493974,1742541040689,-1000.0,0.00013869,2]
[356493975,1742541040699,-166.66,0.00013965,2]
[356493976,1742541040708,-166.66,0.00014397,2]
[356493977,1742541040718,-1394.35,0.00014418,2]
[356493978,1742541040728,-166.66,0.00014829,2]
[356493979,1742541040738,-246.51,0.00015068,2]
[356493980,1742541040747,-166.66,0.00015262,2]
[356493981,1742541040757,-1000.0,0.0001541,2]
[356493982,1742541040766,-250.8,0.00015727,2]
[356493983,1742541040775,-250.0,0.0001581,2]
[356493984,1742541040785,-1706.58,0.00015945,2]
[356493985,1742541040795,-1406.69,0.00016173,2]
[356493986,1742541040804,-250.0,0.0001643,2]
[356493987,1742541040813,-246.51,0.00016438,2]
[356493991,1742541041027,-2751.0,0.00016501,2]
[356493992,1742541041038,-200.0,0.00016568,2]
[356493993,1742541041048,-250.8,0.00016601,2]
[356493994,1742541041057,-1394.35,0.00016682,2]
[356493995,1742541041066,-1214.04,0.00016729,2]
[356493996,1742541041076,-1000.0,0.00016951,2]
[356493997,1742541041085,-804.0,0.00017344,2]
[356493998,1742541041095,-250.8,0.00017475,2]
[356493999,1742541041104,-200.0,0.00018082,2]
[356494000,1742541041114,-1637.74,0.00018331,2]
[356494001,1742541041123,-250.8,0.00018349,2]
[356494002,1742541041132,-1000.0,0.00018492,2]
[356494003,1742541041141,-1394.35,0.00018946,2]
[356494004,1742541041151,-1437.33415954,0.00019,2]
[356494005,1742541041160,-379.34616614,0.00019,2]
[356494006,1742541041169,-1763.63584574,0.00019,2]
[356494007,1742541041179,-252.04164791,0.000192,2]
[356494008,1742541041188,-252.0416477,0.000192,2]
[356494009,1742541041197,-252.0416477,0.000192,2]
[356494010,1742541041206,-250.8,0.00019222,2]
[356494011,1742541041215,-1168.00585706,0.0002,2]
[356494012,1742541041224,-151.31,0.0002,2]
[356494013,1742541041233,-250.8,0.00020096,2]
[356494014,1742541041242,-3749.53770385,0.00020381,2]
[356494015,1742541041251,-250.8,0.0002097,2]
[356494016,1742541041260,-250.0,0.00021,2]
[356494017,1742541041270,-1394.35,0.0002121,2]
[356494018,1742541041279,-245.94,0.00021815,2]
[356494019,1742541041289,-250.8,0.00021844,2]
[356494020,1742541041298,-252.0416477,0.000219,3]
[356494021,1742541041307,-150.0,0.00021917,2]
[356494022,1742541041316,-3749.53770385,0.00022484,2]
[356494023,1742541041326,-250.8,0.00022717,2]
[356494024,1742541041335,-300.0,0.00023,2]
[356494025,1742541041344,-150.0,0.00023287,2]
[356494026,1742541041353,-1394.35,0.00023473,2]
[356494027,1742541041363,-151.31,0.00023499,2]
[356494028,1742541041372,-916.26,0.00023509,2]
[356494029,1742541041382,-250.8,0.00023591,2]
[356494030,1742541041392,-157.68,0.00023836,2]
[356494031,1742541041401,-6981.19,0.00023983,2]
[356494032,1742541041410,-245.94,0.00024542,2]
[356494033,1742541041420,-3749.53770385,0.00024588,2]
[356494034,1742541041429,-150.0,0.00024657,2]
[356494035,1742541041439,-1000.0,0.00024658,2]
[356494036,1742541041448,-41563.0,0.00024685,2]
[356494037,1742541041457,-165.83,0.00024712,30]
[356494038,1742541041467,-411.20423699,0.00024873,2]
[356494039,1742541041476,-160.08132431,0.00024873,2]
[356494040,1742541041490,-151.0,0.000249,7]
[356494041,1742541041499,-272003.790087,0.000249,3]
[356494042,1742541041509,-252.0416477,0.000249,4]
[356494043,1742541041518,-316.21691147,0.00024945,2]
[356494044,1742541041529,-917.105,0.00024969,2]
[356494045,1742541041538,-542.0,0.00024969,2]
[356494046,1742541041547,-1431.901,0.00024969,2]
[356494047,1742541041557,-4083.0,0.00024969,2]
[356494048,1742541041567,-350.0,0.00025,2]
[356494049,1742541041576,-3938.0,0.00025165,2]
[356494050,1742541041586,-279.425,0.00025165,2]
[356494051,1742541041595,-1014.0,0.00025165,2]
[356494052,1742541041605,-185.59,0.00025253,2]
[356494053,1742541041614,-2003.79133116,0.00025492,2]
[356494054,1742541041624,-1394.35,0.00025737,2]
[356494055,1742541041633,-817.15,0.00025786,2]
[356494056,1742541041642,-538.96,0.00025786,2]
[356494057,1742541041651,-150.99,0.00025786,2]
[356494058,1742541041661,-21600.8,0.00025786,10]
[356494059,1742541041670,-150.0,0.00026027,2]
[356494060,1742541041680,-250.0,0.000265,2]
[356494061,1742541041690,-501.30374631,0.00026573,2]
[356494062,1742541041700,-9999.99,0.00026591,2]
[356494063,1742541041710,-7711.22,0.00026591,2]
[356494064,1742541041719,-499.99,0.00026591,2]
[356494065,1742541041729,-2342.6,0.00026591,2]
[356494066,1742541041739,-3749.53770385,0.00026692,2]
[356494067,1742541041749,-387.98,0.00026849,2]
[356494068,1742541041758,-161.51,0.00026849,2]
[356494069,1742541041768,-400.0,0.00027,2]
[356494070,1742541041777,-150.0,0.00027116,2]
[356494071,1742541041787,-152.816,0.00027116,2]
[356494072,1742541041797,-2035.0,0.00027116,2]
[356494073,1742541041807,-1280.0,0.00027116,2]
[356494074,1742541041816,-642.0,0.00027116,2]
[356494075,1742541041825,-655.111,0.00027116,2]
[356494076,1742541041835,-1420.0,0.00027116,2]
[356494077,1742541041844,-1275.658,0.00027116,2]
[356494078,1742541041854,-789.0,0.00027116,2]
[356494079,1742541041864,-245.94,0.00027269,120]
[356494080,1742541041874,-150.0,0.00027397,2]
[356494081,1742541041883,-252.0416477,0.000279,4]
[356494082,1742541041892,-907.0,0.00027969,2]
[356494083,1742541041902,-1430.0,0.00027969,2]
[356494084,1742541041912,-542.0,0.00027969,2]
[356494085,1742541041922,-4083.0,0.00027969,2]
[356494086,1742541041932,-1394.35,0.00028001,2]
[356494087,1742541041942,-3938.0,0.00028165,2]
[356494088,1742541041952,-151.0,0.00028165,2]
[356494089,1742541041962,-1014.0,0.00028165,2]
[356494090,1742541041972,-316.21691147,0.0002819,2]
[356494091,1742541041982,-150.0,0.00028767,2]
[356494092,1742541041992,-3749.53770385,0.00028796,2]
[356494093,1742541042002,-310.2950356,0.00029616,2]
[356494094,1742541042011,-310.2950356,0.00029753,2]
[356494095,1742541042021,-310.2950356,0.0002989,2]
[356494096,1742541042030,-245.94,0.00029996,120]
[356494097,1742541042040,-2447.77803345,0.0003,2]
[356494098,1742541042049,-160.0,0.0003,14]
[356494099,1742541042059,-310.2950356,0.00030055,2]
[356494100,1742541042068,-350.0,0.000301,2]
[356494101,1742541042078,-150.0,0.00030116,2]
[356494102,1742541042088,-2035.0,0.00030116,2]
[356494103,1742541042097,-1280.0,0.00030116,2]
[356494104,1742541042106,-642.0,0.00030116,2]
[356494105,1742541042115,-572.0,0.00030116,2]
[356494106,1742541042125,-1420.0,0.00030116,2]
[356494107,1742541042144,-787.0,0.00030116,2]
[356494108,1742541042154,-1272.0,0.00030116,2]
[356494109,1742541042163,-150.0,0.00030136,2]
[356494110,1742541042173,-700.0,0.00030136,60]
[356494111,1742541042184,-700.0,0.00030136,60]
[356494112,1742541042193,-700.0,0.00030136,60]
[356494113,1742541042203,-700.0,0.00030136,60]
[356494114,1742541042213,-700.0,0.00030136,60]
[356494115,1742541042223,-700.0,0.00030136,60]
[356494116,1742541042233,-700.0,0.00030136,60]
[356494117,1742541042243,-700.0,0.00030136,60]
[356494118,1742541042253,-445.0370498,0.00030136,60]
[356494119,1742541042263,-310.2950356,0.00030192,2]
[356494120,1742541042272,-153.86,0.00030197,2]
[356494121,1742541042282,-1394.35,0.00030265,2]
[356494122,1742541042292,-153.86,0.00030268,2]
[356494123,1742541042302,-310.2950356,0.00030329,2]
[356494124,1742541042312,-153.86,0.00030339,2]
[356494125,1742541042321,-153.86,0.0003041,2]
[356494126,1742541042331,-310.2950356,0.00030466,2]
[356494127,1742541042341,-153.86,0.00030481,2]
[356494128,1742541042351,-466.3051957,0.00030545,4]
[356494129,1742541042360,-153.86,0.00030552,2]
[356494130,1742541042369,-153.86,0.00030623,2]
[356494131,1742541042379,-310.2950356,0.0003063,2]
[356494132,1742541042388,-153.86,0.00030695,2]
[356494133,1742541042398,-153.86,0.00030766,2]
[356494134,1742541042407,-310.2950356,0.00030767,2]
[356494135,1742541042417,-500.0,0.00030822,2]
[356494136,1742541042427,-153.86,0.00030837,2]
[356494137,1742541042444,-151.31,0.0003089,2]
[356494138,1742541042457,-151.31,0.0003089,2]
[356494139,1742541042475,-700261.7681665,0.000309,2]
[356494140,1742541042494,-151.0,0.000309,7]
[356494141,1742541042506,-2869.4775526,0.000309,6]
[356494142,1742541042519,-154.82085398,0.000309,2]
[356494143,1742541042534,-3749.53770385,0.000309,2]
[356494144,1742541042548,-252.0416477,0.000309,5]
[356494145,1742541042561,-2891.29075,0.000309,7]
[356494146,1742541042574,-151.0,0.000309,7]
[356494147,1742541042588,-2891.29075,0.000309,7]
[356494148,1742541042602,-12466.73034137,0.000309,2]
[356494149,1742541042615,-310.2950356,0.00030904,2]
[356494150,1742541042626,-153.86,0.00030908,2]
[356494151,1742541042637,-907.0,0.00030969,2]
[356494152,1742541042651,-1430.0,0.00030969,2]
[356494153,1742541042663,-542.0,0.00030969,2]
[356494154,1742541042676,-4083.0,0.00030969,2]
[356494155,1742541042690,-153.86,0.00030979,2]
[356494156,1742541042703,-151.31,0.0003099,2]
[356494157,1742541042717,-151.31,0.0003099,2]
[356494158,1742541042731,-151.31,0.0003099,2]
[356494159,1742541042743,-151.31,0.0003099,2]
[356494160,1742541042755,-151.31,0.0003099,2]
[356494161,1742541042769,-151.31,0.0003099,2]
[356494162,1742541042781,-151.31,0.0003099,2]
[356494164,1742541042794,-151.31,0.0003099,2]
[356494165,1742541042806,-151.31,0.0003099,2]
[356494166,1742541042820,-151.31,0.0003099,2]
[356494167,1742541042832,-151.31,0.0003099,2]
[356494168,1742541042844,-151.31,0.0003099,2]
[356494169,1742541042857,-151.31,0.0003099,2]
[356494170,1742541042872,-151.31,0.0003099,2]
[356494171,1742541042886,-151.31,0.0003099,2]
[356494172,1742541042899,-151.31,0.0003099,2]
[356494173,1742541042910,-151.31,0.0003099,2]
[356494174,1742541042922,-201.18446422,0.00031,3]
[356494175,1742541042934,-1333023.795332,0.00031,3]
[356494176,1742541042959,-4055.43180006,0.00031,3]
[356494177,1742541042978,-827.01280657,0.00031,3]
[356494182,1742541043279,-466.04883812,0.00031,3]
[356494191,1742541046007,-1068.40519484,0.00025169,2]
[356494192,1742541046101,-46.59480516,0.00025169,2]
[356494193,1742541046110,-572.90554688,0.00028169,2]
[356494194,1742541046122,-542.09445312,0.00028169,2]
[356494195,1742541046131,-1793.80614688,0.00031,3]
[356494218,1742542081966,981.23462269,9.5e-05,2]
[356494227,1742542097779,-5166.32110192,0.0001,2]
[356494228,1742542097817,-3340.12342192,0.0001,2]
[356494230,1742542122678,-3429.917213,9.95e-05,2]
[356494231,1742542122713,-1906.5327794,0.0001,2]
[356494233,1742542122752,-2704.48209533,0.0001,2]
[356494235,1742542147994,-5497.26863416,0.0001,2]
[356494237,1742542148042,-5393.45817196,0.0001,2]
[356494239,1742542172985,-1780.53785833,0.0001,2]
[356494243,1742542232036,-426.36644233,0.0001,2]
[356494245,1742542232048,-399.07240759,0.0001,2]
[356494246,1742542232069,-255.97559429,0.0001,2]
[356494247,1742542232080,-1300.0,0.0001,2]
[356494248,1742542232092,-1527.45052351,0.0001,2]
[356494249,1742542232103,-627.58285509,0.0001,2]
[356494250,1742542232184,-701.115,0.0001,2]
[356494251,1742542232195,-952.32999,0.0001,2]
[356494252,1742542232298,-626.59296356,0.0001,2]
[356494253,1742542232328,-2450.845,0.0001,2]
[356494254,1742542238028,-1638.65078962,0.0001,2]
[356494255,1742542238040,-2292.245,0.0001,2]
[356494256,1742542238055,-630.69068571,0.0001,2]
[356494257,1742542238067,-1690.76584783,0.0001,2]
[356494258,1742542238149,-500.0,0.0001,2]
[356494259,1742542238161,-958.72362565,0.0001,2]
[356494260,1742542238171,-9728.13633588,0.0001,2]
[356494261,1742542238182,-340.10035817,0.0001,2]
[356494262,1742542238275,-36760.38915036,0.0001,2]
[356494265,1742542238287,-444.65525381,0.0001,2]
[356494267,1742542238298,-8462.33521222,0.0001,2]
[356494333,1742542240318,-35990.29172697,0.0001,2]
[356494334,1742542240329,-2790.0,0.0001,2]
[356494335,1742542240438,-974.55526154,0.0001,2]
[356494336,1742542240655,-2066.71911004,0.0001,2]
[356494624,1742542246400,-840.7,0.0001,2]
[356495063,1742542710791,179.207,9.8e-05,2]
[356495064,1742542710837,1835.051,9.8e-05,2]
[356495065,1742542741964,-289.3259,9.9e-05,2]
[356495066,1742542741988,-150.0,9.95e-05,2]
[356495067,1742542742014,-9760.6741,0.0001,2]
[356495071,1742542956390,-86000.0,0.0001,2]
[356495072,1742543220887,-300.0,9.9e-05,2]
[356495074,1742543235794,-300.0,9.9e-05,2]
[356495076,1742543298093,-866.7214,9.9e-05,2]
[356495077,1742543298124,-4566.8650129,9.9e-05,2]
[356495078,1742543298160,-3242.22736076,9.9e-05,2]
[356495079,1742543322650,-152.13782634,9.9e-05,2]
[356495080,1742543322681,-1820.2751,9.9e-05,2]
[356495081,1742543322937,-1276.23916111,9.9e-05,2]
[356495086,1742543432343,-274.85303889,9.9e-05,2]
[356495087,1742543432359,-2051.79982265,9.9e-05,2]
[356495088,1742543432396,-85202.92527735,9.9e-05,2]
[356495089,1742543432411,-150.0,9.95e-05,2]
[356495090,1742543432427,-500.28911471,9.973e-05,2]
[356495091,1742543432440,-278432.5173105,0.0001,2]
[356495092,1742543432455,-804.79,0.0001,2]
[356495093,1742543432621,-3783.0691778,0.0001,2]
[356495094,1742543432637,-816.18537405,0.0001,2]
[356495095,1742543432711,-291.7879529,0.0001,2]
[356495177,1742543438176,-715.86464333,0.0001,2]
[356495234,1742543440588,-6718.56,0.0001,2]
[356495235,1742543440765,-1435.7055609,0.0001,2]
[356495377,1742543444294,-279.09938607,0.0001,2]
[356495379,1742543444310,-4540.90239135,0.0001,2]
[356495570,1742543446246,-1687.53936,0.0001,2]
[356495578,1742543446458,-10.48081777,0.0001,2]
[356495579,1742543446609,-812.53479581,0.0001,2]
[356495589,1742543748264,220.35,8.551e-05,2]
[356495590,1742544215978,12886.3781,9.8e-05,2]
[356495591,1742544279927,1429.81,8.219e-05,2]
[356495594,1742544525939,-227.89,9.879e-05,2]
[356495596,1742544525970,-1026.77,9.893e-05,2]
[356495597,1742544526000,-150.0,9.899e-05,2]
[356495599,1742544526030,-196.0,9.899e-05,2]
[356495600,1742544526058,-150.0,9.899e-05,2]
[356495602,1742544526086,-1551.67475827,9.9e-05,2]
[356495609,1742544631509,-4694.42,9.876e-05,2]
[356495610,1742544631519,-150.0,9.899e-05,2]
[356495611,1742544631529,-150.0,9.9e-05,2]
[356495612,1742544631540,-1327.94204173,9.9e-05,2]
[356495613,1742544631549,-254.1871,9.9e-05,2]
[356495614,1742544631559,-468.4374,9.9e-05,2]
[356495615,1742544631568,-221.1045,9.9e-05,2]
[356495616,1742544631578,-1913.6831,9.9e-05,2]
[356495617,1742544631588,-4197.9548,9.9e-05,2]
[356495618,1742544631598,-44877.7296,9.9e-05,2]
[356495619,1742544631608,-209.3327,9.9e-05,2]
[356495620,1742544631617,-267.8236,9.9e-05,2]
[356495621,1742544631627,-3900.0466,9.9e-05,2]
[356495622,1742544631637,-1000.0,9.9e-05,2]
[356495623,1742544631646,-1000.0,9.9e-05,2]
[356495624,1742544631656,-2500.0,9.9e-05,2]
[356495625,1742544631666,-2118.2211028,9.9e-05,2]
[356495626,1742544631675,-1000.0,9.915e-05,2]
[356495627,1742544631685,-310.02,9.96e-05,2]
[356495628,1742544631694,-457.0944805,9.973e-05,2]
[356495629,1742544631704,-356.60709018,9.973e-05,2]
[356495630,1742544631713,-13267.95,9.978e-05,2]
[356495631,1742544631722,-171.57,9.999e-05,2]
[356495632,1742544631731,-185723.99900051,0.0001,2]
[356495671,1742544637296,-886.16936274,0.0001,2]
[356495672,1742544637309,-608.80008703,0.0001,2]
[356495673,1742544637320,-1571.50376747,0.0001,2]
[356495674,1742544637349,-1073.01206925,0.0001,2]
[356495675,1742544637360,-378.41035946,0.0001,2]
[356495676,1742544637405,-1704.75408117,0.0001,2]
[356495677,1742544637417,-6107.54563059,0.0001,2]
[356495680,1742544639488,-972.76269351,0.0001,2]